lending/lending_fUSD_20250719
["ID","MTS","AMOUNT","RATE_DAILY","PERIOD"]
[373167254,1752888694179,-480.0,0.00019726,2]
[373167255,1752888694189,-2279.02,0.00019726,2]
[373167256,1752888694200,-2361.11,0.00019726,2]
[373167257,1752888694210,-480.0,0.00019726,2]
[373167258,1752888694219,-480.0,0.00019726,2]
[373167259,1752888694230,-828.8,0.00019726,2]
[373167260,1752888694239,-480.0,0.00019726,2]
[373167261,1752888694250,-825.18,0.00019726,2]
[373167262,1752888694260,-564.95,0.00019726,2]
[373167263,1752888694269,-1303.91,0.00019726,2]
[373167264,1752888694279,-1096.8,0.00019726,2]
[373167265,1752888694289,-566.27,0.00019726,2]
[373167266,1752888694300,-480.0,0.00019726,2]
[373167267,1752888694309,-494.97,0.00019726,2]
[373167268,1752888694320,-1813.24,0.00019726,2]
[373167269,1752888694330,-480.0,0.00019726,2]
[373167270,1752888694339,-1571.61,0.00019726,2]
[373167271,1752888694349,-5046.27,0.00019726,2]
[373167272,1752888694359,-962.21,0.00019726,2]
[373167273,1752888694369,-493.8692107,0.00019726,2]
[373167274,1752888694379,-520.74,0.00019726,2]
[373167275,1752888694389,-5415.282094,0.00019726,2]
[373167276,1752888694398,-868.4,0.00019726,2]
[373167277,1752888694410,-2145.47,0.00019726,2]
[373167278,1752888694420,-480.0,0.00019726,2]
[373167279,1752888694430,-2324.63,0.00019726,2]
[373167280,1752888694439,-1859.22,0.00019726,2]
[373167281,1752888694450,-480.0,0.00019726,2]
[373167282,1752888694459,-460.0,0.00019726,2]
[373167283,1752888694470,-680.56,0.00019726,2]
[373167284,1752888694480,-977.92,0.00019726,2]
[373167285,1752888694490,-2000.63,0.00019726,2]
[373167286,1752888694500,-698.05,0.00019726,2]
[373167287,1752888694510,-532.95,0.00019726,2]
[373167288,1752888694520,-566.02,0.00019726,2]
[373167289,1752888694531,-1464.48,0.00019726,2]
[373167290,1752888694542,-480.0,0.00019726,2]
[373167291,1752888694553,-1622.47,0.00019726,2]
[373167292,1752888694565,-1223.86,0.00019726,2]
[373167293,1752888694575,-555.09289543,0.00019726,2]
[373167294,1752888694585,-4391.98,0.00019726,2]
[373167295,1752888694596,-526.96,0.00019726,2]
[373167296,1752888694606,-1945.01,0.00019726,2]
[373167297,1752888694617,-962.59,0.00019726,2]
[373167298,1752888694627,-1497.68,0.00019726,2]
[373167299,1752888694636,-3188.33,0.00019726,2]
[373167300,1752888694646,-1016.89,0.00019726,2]
[373167301,1752888694656,-817.83,0.00019726,2]
[373167302,1752888694668,-8208.97,0.00019726,2]
[373167303,1752888694678,-878.55,0.00019726,2]
[373167304,1752888694688,-1589.38,0.00019726,2]
[373167305,1752888694698,-2919.23,0.00019726,2]
[373167306,1752888694708,-480.0,0.00019726,2]
[373167307,1752888694718,-800.44,0.00019726,2]
[373167308,1752888694728,-2236.36,0.00019726,2]
[373167309,1752888694738,-3984.11,0.00019726,2]
[373167310,1752888694748,-480.0,0.00019726,2]
[373167311,1752888694758,-480.0,0.00019726,2]
[373167312,1752888694768,-480.0,0.00019726,2]
[373167313,1752888694778,-480.0,0.00019726,2]
[373167314,1752888694788,-1183.06,0.00019726,2]
[373167315,1752888694798,-725.36,0.00019726,2]
[373167316,1752888694808,-480.0,0.00019726,2]
[373167317,1752888694819,-2173.08,0.00019726,2]
[373167318,1752888694829,-2117.64,0.00019726,2]
[373167319,1752888694839,-480.0,0.00019726,2]
[373167320,1752888694850,-2731.47,0.00019726,2]
[373167321,1752888695126,-1978.38,0.00019726,2]
[373167322,1752888695136,-531.72,0.00019726,2]
[373167323,1752888695146,-555.35,0.00019726,2]
[373167324,1752888695160,-158.92,0.00019726,2]
[373167325,1752888695169,-480.0,0.00019726,2]
[373167326,1752888695179,-258.98810709,0.00019726,2]
[373167327,1752888695188,-2481.37,0.00019726,2]
[373167328,1752888695198,-1343.88,0.00019726,2]
[373167329,1752888695208,-480.0,0.00019726,2]
[373167330,1752888695217,-480.0,0.00019726,2]
[373167331,1752888695228,-728.91,0.00019726,2]
[373167332,1752888695237,-560.64,0.00019726,2]
[373167333,1752888695246,-480.0,0.00019726,2]
[373167334,1752888695255,-480.0,0.00019726,2]
[373167335,1752888695265,-217.70514916,0.00019726,2]
[373167336,1752888695275,-585.12,0.00019726,2]
[373167337,1752888695284,-508.37,0.00019726,2]
[373167338,1752888695294,-1149.78,0.00019726,2]
[373167339,1752888695303,-3388.13,0.00019726,2]
[373167340,1752888695313,-891.26,0.00019726,2]
[373167341,1752888695323,-2906.59,0.00019726,2]
[373167342,1752888695332,-1185.44,0.00019726,2]
[373167343,1752888695342,-480.0,0.00019726,2]
[373167344,1752888695351,-2035.15,0.00019726,2]
[373167345,1752888695361,-748.68,0.00019726,2]
[373167346,1752888695370,-998.17,0.00019726,2]
[373167347,1752888695380,-1441.68,0.00019726,2]
[373167348,1752888695389,-1381.67,0.00019726,2]
[373167349,1752888695399,-994.6,0.00019726,2]
[373167350,1752888695410,-480.0,0.00019726,2]
[373167351,1752888695420,-523.26,0.00019726,2]
[373167352,1752888695430,-480.0,0.00019726,2]
[373167353,1752888695440,-480.0,0.00019726,2]
[373167354,1752888695450,-615.01,0.00019726,2]
[373167355,1752888695460,-463.36,0.00019726,2]
[373167356,1752888695470,-2381.44,0.00019726,2]
[373167357,1752888695480,-480.0,0.00019726,2]
[373167358,1752888695490,-6547.29,0.00019726,2]
[373167359,1752888695500,-2219.69,0.00019726,2]
[373167360,1752888695510,-480.0,0.00019726,2]
[373167361,1752888695520,-574.05,0.00019726,2]
[373167362,1752888695530,-781.22,0.00019726,2]
[373167363,1752888695539,-1256.0,0.00019726,2]
[373167364,1752888695549,-480.0,0.00019726,2]
[373167365,1752888695559,-5876.53,0.00019726,2]
[373167366,1752888695569,-34456.48,0.00019726,2]
[373167367,1752888695578,-1885.62,0.00019726,2]
[373167368,1752888695588,-480.0,0.00019726,2]
[373167369,1752888695598,-756.65,0.00019726,2]
[373167370,1752888695607,-779.84,0.00019726,2]
[373167371,1752888695617,-1063.27,0.00019726,2]
[373167372,1752888695627,-1843.88,0.00019726,2]
[373167373,1752888695637,-902.36,0.00019726,2]
[373167374,1752888695647,-480.0,0.00019726,2]
[373167375,1752888695657,-879.53,0.00019726,2]
[373167376,1752888695667,-3926.79,0.00019726,2]
[373167377,1752888695677,-1098.83,0.00019726,2]
[373167378,1752888695687,-531.39,0.00019726,2]
[373167379,1752888695696,-1334.35,0.00019726,2]
[373167380,1752888695706,-1112.34,0.00019726,2]
[373167381,1752888695716,-4173.98,0.00019726,2]
[373167382,1752888695726,-1019.75,0.00019726,2]
[373167383,1752888695736,-531.52,0.00019726,2]
[373167384,1752888695746,-878.37,0.00019726,2]
[373167385,1752888695756,-536.67,0.00019726,2]
[373167386,1752888695765,-4040.09,0.00019726,2]
[373167387,1752888695775,-1009.72,0.00019726,2]
[373167388,1752888695785,-1912.01,0.00019726,2]
[373167389,1752888695794,-3332.41,0.00019726,2]
[373167390,1752888695804,-1164.19,0.00019726,2]
[373167391,1752888695814,-1204.49,0.00019726,2]
[373167392,1752888695824,-480.0,0.00019726,2]
[373167393,1752888695834,-480.0,0.00019726,2]
[373167394,1752888695844,-2333.35,0.00019726,2]
[373167395,1752888695854,-480.0,0.00019726,2]
[373167396,1752888695864,-480.0,0.00019726,2]
[373167397,1752888695874,-480.0,0.00019726,2]
[373167398,1752888695883,-480.0,0.00019726,2]
[373167399,1752888695892,-642.55,0.00019726,2]
[373167400,1752888695902,-645.39,0.00019726,2]
[373167401,1752888695911,-480.0,0.00019726,2]
[373167402,1752888695920,-1344.15,0.00019726,2]
[373167403,1752888695929,-480.0,0.00019726,2]
[373167404,1752888695940,-480.0,0.00019726,2]
[373167405,1752888695950,-1024.03,0.00019726,2]
[373167406,1752888695961,-1675.21,0.00019726,2]
[373167407,1752888695971,-656.42,0.00019726,2]
[373167408,1752888695981,-2380.94,0.00019726,2]
[373167409,1752888695992,-480.0,0.00019726,2]
[373167410,1752888696002,-565.56,0.00019726,2]
[373167411,1752888696011,-1145.56,0.00019726,2]
[373167412,1752888696020,-2595.14,0.00019726,2]
[373167413,1752888696030,-480.0,0.00019726,2]
[373167414,1752888696040,-2293.05,0.00019726,2]
[373167415,1752888696049,-6879.99,0.00019726,2]
[373167416,1752888696058,-480.0,0.00019726,2]
[373167417,1752888696068,-477.07351175,0.00019726,2]
[373167418,1752888696077,-904.05,0.00019726,2]
[373167419,1752888696087,-1167.24,0.00019726,2]
[373167420,1752888696096,-480.0,0.00019726,2]
[373167421,1752888696106,-2324.72,0.00019726,2]
[373167422,1752888696115,-657.5,0.00019726,2]
[373167423,1752888696125,-480.0,0.00019726,2]
[373167424,1752888696135,-1846.36,0.00019726,2]
[373167425,1752888696144,-2058.15,0.00019726,2]
[373167426,1752888696158,-480.0,0.00019726,2]
[373167427,1752888696169,-480.0,0.00019726,2]
[373167428,1752888696179,-480.0,0.00019726,2]
[373167429,1752888696188,-480.0,0.00019726,2]
[373167430,1752888696199,-784.99,0.00019726,2]
[373167431,1752888696208,-1787.76,0.00019726,2]
[373167432,1752888696219,-694.6,0.00019726,2]
[373167433,1752888696230,-2668.26,0.00019726,2]
[373167434,1752888696240,-1118.66,0.00019726,2]
[373167435,1752888696250,-490.10887764,0.00019726,2]
[373167436,1752888696260,-3471.23,0.00019726,2]
[373167437,1752888696271,-287.36326429,0.00019726,2]
[373167438,1752888696282,-480.0,0.00019726,2]
[373167439,1752888696292,-480.0,0.00019726,2]
[373167440,1752888696303,-745.51,0.00019726,2]
[373167441,1752888696315,-6088.28,0.00019726,2]
[373167442,1752888696326,-1379.76,0.00019726,2]
[373167443,1752888696336,-333.51837081,0.00019726,2]
[373167444,1752888696345,-480.0,0.00019726,2]
[373167445,1752888696357,-2501.63,0.00019726,2]
[373167446,1752888696368,-3402.23,0.00019726,2]
[373167447,1752888696378,-480.0,0.00019726,2]
[373167448,1752888696388,-156.587,0.00019726,2]
[373167449,1752888696399,-167.77427081,0.00019735,2]
[373167450,1752888696412,-4233.18587294,0.00019735,2]
[373167451,1752888696421,-1000.0,0.0001974,2]
[373167452,1752888696430,-180.8,0.00019742,2]
[373167453,1752888696440,-500.0,0.0001979,2]
[373167454,1752888696450,-864.56127318,0.00019809,2]
[373167455,1752888696459,-673.18034391,0.00019821,2]
[373167456,1752888696469,-804.0,0.00019824,2]
[373167457,1752888696479,-426.0,0.0001983,2]
[373167458,1752888696489,-480.0,0.00019835,2]
[373167459,1752888696499,-480.0,0.00019835,2]
[373167460,1752888696509,-480.0,0.00019835,2]
[373167461,1752888696519,-480.0,0.00019835,2]
[373167462,1752888696528,-480.0,0.00019835,2]
[373167463,1752888696538,-480.0,0.00019835,2]
[373167464,1752888696547,-480.0,0.00019835,2]
[373167465,1752888696557,-480.0,0.00019835,2]
[373167466,1752888696567,-340.0,0.00019835,2]
[373167467,1752888696576,-480.0,0.00019835,2]
[373167468,1752888696586,-480.0,0.00019835,2]
[373167469,1752888696595,-480.0,0.00019835,2]
[373167470,1752888696605,-480.0,0.00019835,2]
[373167471,1752888696616,-489.7,0.00019835,2]
[373167472,1752888696625,-480.0,0.00019835,2]
[373167473,1752888696635,-526.77,0.00019835,2]
[373167474,1752888696644,-480.0,0.00019835,2]
[373167475,1752888696654,-480.0,0.00019835,2]
[373167476,1752888696664,-480.0,0.00019835,2]
[373167477,1752888696674,-522.6,0.00019835,2]
[373167478,1752888696683,-480.0,0.00019835,2]
[373167479,1752888696693,-480.0,0.00019835,2]
[373167480,1752888696703,-480.0,0.00019835,2]
[373167481,1752888696712,-480.0,0.00019835,2]
[373167482,1752888696722,-161.98,0.00019835,2]
[373167483,1752888696732,-480.0,0.00019835,2]
[373167484,1752888696742,-531.64,0.00019835,2]
[373167485,1752888696751,-480.0,0.00019835,2]
[373167486,1752888696761,-480.0,0.00019835,2]
[373167487,1752888696771,-480.0,0.00019835,2]
[373167488,1752888696780,-480.0,0.00019835,2]
[373167489,1752888696789,-480.0,0.00019835,2]
[373167490,1752888696799,-438.07465236,0.00019835,2]
[373167491,1752888696808,-450.95,0.00019835,2]
[373167492,1752888696819,-480.0,0.00019835,2]
[373167493,1752888696828,-480.0,0.00019835,2]
[373167494,1752888696838,-380.23849595,0.00019835,2]
[373167495,1752888696847,-480.0,0.00019835,2]
[373167496,1752888696856,-480.0,0.00019835,2]
[373167497,1752888696867,-506.35,0.00019835,2]
[373167498,1752888696877,-480.0,0.00019835,2]
[373167499,1752888696886,-480.0,0.00019835,2]
[373167500,1752888696896,-480.0,0.00019835,2]
[373167501,1752888696906,-792.99,0.00019835,2]
[373167502,1752888696915,-480.0,0.00019835,2]
[373167503,1752888696925,-480.0,0.00019835,2]
[373167504,1752888696934,-480.0,0.00019835,2]
[373167505,1752888696944,-480.0,0.00019835,2]
[373167506,1752888696953,-480.0,0.00019835,2]
[373167507,1752888696962,-480.0,0.00019835,2]
[373167508,1752888696972,-659.27,0.00019835,2]
[373167509,1752888696981,-480.0,0.00019835,2]
[373167510,1752888696993,-499.55,0.00019835,2]
[373167511,1752888697002,-533.58,0.00019835,2]
[373167512,1752888697012,-480.0,0.00019835,2]
[373167513,1752888697021,-879.89,0.00019835,2]
[373167514,1752888697030,-480.0,0.00019835,2]
[373167515,1752888697040,-480.0,0.00019835,2]
[373167516,1752888697049,-480.0,0.00019835,2]
[373167517,1752888697059,-480.0,0.00019835,2]
[373167518,1752888697068,-480.0,0.00019835,2]
[373167519,1752888697077,-480.0,0.00019835,2]
[373167520,1752888697086,-480.0,0.00019835,2]
[373167521,1752888697096,-480.0,0.00019835,2]
[373167522,1752888697105,-480.0,0.00019835,2]
[373167523,1752888697115,-849.49,0.00019835,2]
[373167524,1752888697124,-480.0,0.00019835,2]
[373167525,1752888697133,-480.0,0.00019835,2]
[373167526,1752888697143,-480.0,0.00019835,2]
[373167527,1752888697156,-1260.04,0.00019835,2]
[373167528,1752888697166,-480.0,0.00019835,2]
[373167529,1752888697175,-480.0,0.00019835,2]
[373167530,1752888697185,-480.0,0.00019835,2]
[373167531,1752888697197,-480.0,0.00019835,2]
[373167532,1752888697207,-480.0,0.00019835,2]
[373167533,1752888697218,-524.26,0.00019835,2]
[373167534,1752888697230,-664.17,0.00019835,2]
[373167535,1752888697240,-914.42,0.00019835,2]
[373167536,1752888697250,-480.0,0.00019835,2]
[373167537,1752888697260,-655.69,0.00019835,2]
[373167538,1752888697271,-480.0,0.00019835,2]
[373167539,1752888697283,-644.27,0.00019835,2]
[373167540,1752888697292,-840.85,0.00019835,2]
[373167541,1752888697304,-480.0,0.00019835,2]
[373167542,1752888697315,-480.0,0.00019835,2]
[373167543,1752888697327,-480.0,0.00019835,2]
[373167544,1752888697337,-617.21,0.00019835,2]
[373167545,1752888697347,-370.46,0.00019835,2]
[373167546,1752888697358,-480.0,0.00019835,2]
[373167547,1752888697367,-611.79,0.00019835,2]
[373167548,1752888697378,-402.12,0.00019835,2]
[373167549,1752888697388,-480.0,0.00019835,2]
[373167550,1752888697399,-480.0,0.00019835,2]
[373167551,1752888697410,-420.0,0.00019835,2]
[373167552,1752888697421,-631.4,0.00019835,2]
[373167553,1752888697431,-480.0,0.00019835,2]
[373167554,1752888697440,-667.12,0.00019835,2]
[373167555,1752888697451,-480.0,0.00019835,2]
[373167556,1752888697462,-998.16,0.00019835,2]
[373167557,1752888697548,-264.07770755,0.00019835,2]
[373167558,1752888697558,-480.0,0.00019835,2]
[373167559,1752888697567,-480.0,0.00019835,2]
[373167560,1752888697576,-485.49,0.00019835,2]
[373167561,1752888697585,-877.71,0.00019835,2]
[373167562,1752888697594,-480.0,0.00019835,2]
[373167563,1752888697603,-480.0,0.00019835,2]
[373167564,1752888697614,-480.0,0.00019835,2]
[373167565,1752888697623,-480.0,0.00019835,2]
[373167566,1752888697632,-881.24,0.00019835,2]
[373167567,1752888697641,-574.92,0.00019835,2]
[373167568,1752888697650,-480.0,0.00019835,2]
[373167569,1752888697659,-480.0,0.00019835,2]
[373167570,1752888697672,-502.0,0.00019835,2]
[373167571,1752888697681,-480.0,0.00019835,2]
[373167572,1752888697691,-521.42,0.00019835,2]
[373167573,1752888697700,-481.46,0.00019835,2]
[373167574,1752888697709,-480.0,0.00019835,2]
[373167575,1752888697719,-578.28,0.00019835,2]
[373167576,1752888697728,-1069.98,0.00019835,2]
[373167577,1752888697737,-918.24,0.00019835,2]
[373167578,1752888697747,-368.21159626,0.00019835,2]
[373167579,1752888697757,-480.0,0.00019835,2]
[373167580,1752888697767,-696.46,0.00019835,2]
[373167581,1752888697778,-480.0,0.00019835,2]
[373167582,1752888697788,-568.95,0.00019835,2]
[373167583,1752888697797,-480.0,0.00019835,2]
[373167584,1752888697806,-920.75,0.00019835,2]
[373167585,1752888697816,-582.29,0.00019835,2]
[373167586,1752888697825,-716.53,0.00019835,2]
[373167587,1752888697834,-480.0,0.00019835,2]
[373167588,1752888697843,-480.0,0.00019835,2]
[373167589,1752888697852,-585.79,0.00019835,2]
[373167590,1752888697861,-495.19,0.00019835,2]
[373167591,1752888697871,-830.19,0.00019835,2]
[373167592,1752888697880,-480.0,0.00019835,2]
[373167593,1752888697889,-480.0,0.00019835,2]
[373167594,1752888697899,-4174.88,0.00019835,2]
[373167595,1752888697908,-650.56,0.00019835,2]
[373167596,1752888697919,-835.95,0.00019835,2]
[373167597,1752888697928,-480.0,0.00019835,2]
[373167598,1752888697938,-933.22,0.00019835,2]
[373167599,1752888697947,-480.0,0.00019835,2]
[373167600,1752888697957,-480.0,0.00019835,2]
[373167601,1752888697966,-480.0,0.00019835,2]
[373167602,1752888697975,-569.06,0.00019835,2]
[373167603,1752888697985,-602.69,0.00019835,2]
[373167604,1752888697994,-480.0,0.00019835,2]
[373167605,1752888698003,-480.0,0.00019835,2]
[373167606,1752888698013,-621.28,0.00019835,2]
[373167607,1752888698022,-1447.89,0.00019835,2]
[373167608,1752888698031,-480.0,0.00019835,2]
[373167609,1752888698040,-480.0,0.00019835,2]
[373167610,1752888698049,-480.0,0.00019835,2]
[373167611,1752888698058,-480.0,0.00019835,2]
[373167612,1752888698067,-910.53,0.00019835,2]
[373167613,1752888698077,-1081.58,0.00019835,2]
[373167614,1752888698086,-480.0,0.00019835,2]
[373167615,1752888698095,-588.15,0.00019835,2]
[373167616,1752888698104,-480.0,0.00019835,2]
[373167617,1752888698113,-480.0,0.00019835,2]
[373167618,1752888698122,-480.0,0.00019835,2]
[373167619,1752888698131,-480.0,0.00019835,2]
[373167620,1752888698141,-480.0,0.00019835,2]
[373167621,1752888698152,-480.0,0.00019835,2]
[373167622,1752888698165,-480.0,0.00019835,2]
[373167623,1752888698174,-3061.9,0.00019835,2]
[373167624,1752888698184,-480.0,0.00019835,2]
[373167625,1752888698194,-650.55,0.00019835,2]
[373167626,1752888698206,-480.0,0.00019835,2]
[373167627,1752888698215,-590.15,0.00019835,2]
[373167628,1752888698225,-765.38,0.00019835,2]
[373167629,1752888698235,-480.0,0.00019835,2]
[373167630,1752888698245,-730.13,0.00019835,2]
[373167631,1752888698255,-564.9,0.00019835,2]
[373167632,1752888698264,-779.26,0.00019835,2]
[373167633,1752888698274,-480.0,0.00019835,2]
[373167634,1752888698285,-1273.31,0.00019835,2]
[373167635,1752888698294,-628.02671277,0.00019835,2]
[373167636,1752888698305,-480.0,0.00019835,2]
[373167637,1752888698315,-420.0,0.00019835,2]
[373167638,1752888698325,-856.25,0.00019835,2]
[373167639,1752888698335,-480.0,0.00019835,2]
[373167640,1752888698345,-493.88,0.00019835,2]
[373167641,1752888698355,-480.0,0.00019835,2]
[373167642,1752888698365,-419.88723242,0.00019835,2]
[373167643,1752888698375,-1090.52,0.00019835,2]
[373167644,1752888698386,-520.8,0.00019835,2]
[373167645,1752888698396,-1533.88,0.00019835,2]
[373167646,1752888698405,-229.4,0.00019835,2]
[373167647,1752888698416,-480.0,0.00019835,2]
[373167648,1752888698425,-497.14,0.00019835,2]
[373167649,1752888698434,-761.08,0.00019835,2]
[373167650,1752888698444,-560.6637349,0.00019835,2]
[373167651,1752888698453,-372.71,0.00019835,2]
[373167652,1752888698462,-590.77,0.00019835,2]
[373167653,1752888698472,-480.0,0.00019835,2]
[373167654,1752888698482,-480.0,0.00019835,2]
[373167655,1752888698493,-572.66,0.00019835,2]
[373167656,1752888698503,-480.0,0.00019835,2]
[373167657,1752888698513,-480.0,0.00019835,2]
[373167658,1752888698524,-1780.4,0.00019835,2]
[373167659,1752888698534,-982.44,0.00019835,2]
[373167660,1752888698544,-583.37,0.00019835,2]
[373167661,1752888698555,-932.52,0.00019835,2]
[373167662,1752888698565,-480.0,0.00019835,2]
[373167663,1752888698575,-566.63,0.00019835,2]
[373167664,1752888698584,-480.0,0.00019835,2]
[373167665,1752888698594,-568.61,0.00019835,2]
[373167666,1752888698604,-607.81,0.00019835,2]
[373167667,1752888698614,-576.95,0.00019835,2]
[373167668,1752888698624,-1155.68,0.00019835,2]
[373167669,1752888698635,-696.38,0.00019835,2]
[373167670,1752888698645,-496.58,0.00019835,2]
[373167671,1752888698656,-709.78,0.00019835,2]
[373167672,1752888698666,-480.0,0.00019835,2]
[373167673,1752888698675,-724.41,0.00019835,2]
[373167674,1752888698684,-480.0,0.00019835,2]
[373167675,1752888698694,-520.84,0.00019835,2]
[373167676,1752888698703,-480.0,0.00019835,2]
[373167677,1752888698712,-719.42,0.00019835,2]
[373167678,1752888698723,-480.0,0.00019835,2]
[373167679,1752888698732,-640.67,0.00019835,2]
[373167680,1752888698742,-487.25,0.00019835,2]
[373167681,1752888698753,-480.0,0.00019835,2]
[373167682,1752888698763,-480.0,0.00019835,2]
[373167683,1752888698772,-480.0,0.00019835,2]
[373167684,1752888698783,-495.49,0.00019835,2]
[373167685,1752888698794,-3131.25,0.00019835,2]
[373167686,1752888698803,-480.0,0.00019835,2]
[373167687,1752888698813,-1078.16,0.00019835,2]
[373167688,1752888698832,-480.0,0.00019835,2]
[373167689,1752888698843,-480.0,0.00019835,2]
[373167690,1752888698852,-480.0,0.00019835,2]
[373167691,1752888698862,-480.0,0.00019835,2]
[373167692,1752888698872,-480.0,0.00019835,2]
[373167693,1752888698882,-706.8,0.00019835,2]
[373167694,1752888698891,-898.9,0.00019835,2]
[373167695,1752888698900,-553.3,0.00019835,2]
[373167696,1752888698910,-2995.02,0.00019835,2]
[373167697,1752888698921,-871.17,0.00019835,2]
[373167698,1752888698930,-3995.22,0.00019835,2]
[373167699,1752888698940,-480.0,0.00019835,2]
[373167700,1752888698950,-480.0,0.00019835,2]
[373167701,1752888698959,-1340.32,0.00019835,2]
[373167702,1752888698969,-1013.99,0.00019835,2]
[373167703,1752888698978,-1855.61,0.00019835,2]
[373167704,1752888698987,-612.82,0.00019835,2]
[373167705,1752888698997,-480.0,0.00019835,2]
[373167706,1752888699007,-5464.38,0.00019835,2]
[373167707,1752888699017,-823.03,0.00019835,2]
[373167708,1752888699027,-1917.13,0.00019835,2]
[373167709,1752888699036,-528.33,0.00019835,2]
[373167710,1752888699046,-480.0,0.00019835,2]
[373167711,1752888699056,-1681.6,0.00019835,2]
[373167712,1752888699066,-720.52,0.00019835,2]
[373167713,1752888699076,-13559.65,0.00019835,2]
[373167714,1752888699086,-968.31,0.00019835,2]
[373167715,1752888699098,-1252.73,0.00019835,2]
[373167716,1752888699108,-791.37,0.00019835,2]
[373167717,1752888699119,-875.72,0.00019835,2]
[373167718,1752888699130,-480.0,0.00019835,2]
[373167719,1752888699141,-509.77,0.00019835,2]
[373167720,1752888699153,-480.0,0.00019835,2]
[373167721,1752888699164,-480.0,0.00019835,2]
[373167722,1752888699173,-535.75,0.00019835,2]
[373167723,1752888699183,-480.0,0.00019835,2]
[373167724,1752888699192,-802.98,0.00019835,2]
[373167725,1752888699208,-1032.63,0.00019835,2]
[373167726,1752888699218,-1005.17,0.00019835,2]
[373167727,1752888699230,-969.04,0.00019835,2]
[373167728,1752888699241,-1082.65,0.00019835,2]
[373167729,1752888699251,-480.0,0.00019835,2]
[373167730,1752888699261,-480.0,0.00019835,2]
[373167731,1752888699271,-1629.45,0.00019835,2]
[373167732,1752888699280,-1514.35,0.00019835,2]
[373167733,1752888699290,-480.0,0.00019835,2]
[373167734,1752888699300,-805.13,0.00019835,2]
[373167735,1752888699310,-155.560531,0.00019835,2]
[373167736,1752888699320,-1066.81,0.00019835,2]
[373167737,1752888699330,-158.295973,0.00019835,2]
[373167738,1752888699339,-4796.86,0.00019835,2]
[373167739,1752888699349,-480.0,0.00019835,2]
[373167740,1752888699359,-436.62,0.00019835,2]
[373167741,1752888699372,-6197.942388,0.00019835,2]
[373167742,1752888699382,-480.0,0.00019835,2]
[373167743,1752888699392,-1021.81,0.00019835,2]
[373167744,1752888699403,-480.0,0.00019835,2]
[373167745,1752888699412,-6221.808823,0.00019835,2]
[373167746,1752888699422,-3566.89,0.00019835,2]
[373167747,1752888699431,-480.0,0.00019835,2]
[373167748,1752888699440,-1603.75,0.00019835,2]
[373167749,1752888699450,-480.0,0.00019835,2]
[373167750,1752888699459,-821.44,0.00019835,2]
[373167751,1752888699469,-821.18,0.00019835,2]
[373167752,1752888699478,-480.0,0.00019835,2]
[373167753,1752888699487,-480.0,0.00019835,2]